bitfinex/quotes_BTCUSD_20250522
["timestamp","ask_amount","ask_price","bid_price","bid_amount"]
[1747902603990,0.00415198,110750.0,110740.0,4.26818841]
[1747902603991,0.00715198,110750.0,110740.0,4.26818841]
[1747902604202,0.00515198,110750.0,110740.0,4.26718841]
[1747902604644,0.00615198,110750.0,110740.0,4.26818841]
[1747902605416,0.00315198,110750.0,110740.0,4.26718841]
[1747902605647,0.00415198,110750.0,110740.0,4.26818841]
[1747902608892,0.00415198,110750.0,110740.0,4.26810841]
[1747902610596,0.00415198,110750.0,110740.0,4.27810841]
[1747902613069,0.18473888,110750.0,110740.0,3.54522841]
[1747902613271,0.18473888,110750.0,110740.0,4.27566841]
[1747902614308,0.00415198,110750.0,110740.0,4.27566841]
[1747902615326,0.25691173,110750.0,110740.0,0.85929756]
[1747902615651,0.33486984,110750.0,110740.0,0.002]
[1747902616115,0.26269699,110750.0,110740.0,0.002]
[1747902616490,0.27628929,110750.0,110740.0,0.002]
[1747902617229,0.54700929,110750.0,110740.0,0.002]
[1747902617448,0.80928186,110750.0,110740.0,0.002]
[1747902617676,0.5629201,110750.0,110740.0,0.001]
[1747902618082,0.25718089,110730.0,110720.0,0.34]
[1747902618317,0.25718089,110730.0,110720.0,2.27725756]
[1747902618538,0.24816745,110720.0,110710.0,0.02709]
[1747902618994,0.18968459,110710.0,110700.0,0.00204]
[1747902619163,0.18968459,110710.0,110700.0,0.520466]
[1747902619164,0.24918459,110710.0,110700.0,0.520466]
[1747902619378,0.24918459,110710.0,110700.0,0.00204]
[1747902619596,0.85138646,110710.0,110700.0,0.00204]
[1747902619808,0.94093202,110710.0,110700.0,0.00204]
[1747902620238,0.95547287,110710.0,110700.0,0.00254952]
[1747902620444,0.71908066,110710.0,110700.0,0.00254952]
[1747902620865,0.98135323,110710.0,110700.0,0.00254952]
[1747902621068,0.98535323,110710.0,110700.0,0.00254952]
[1747902621521,0.99035323,110710.0,110700.0,0.00254952]
[1747902621718,1.01937597,110710.0,110700.0,0.00254952]
[1747902621929,0.96447287,110710.0,110700.0,0.00254952]
[1747902622720,0.25755269,110690.0,110680.0,0.01280822]
[1747902622970,0.99633379,110690.0,110680.0,0.01280822]
[1747902623093,1.03131249,110690.0,110680.0,0.01280822]
[1747902623904,0.97347394,110690.0,110680.0,0.01280822]
[1747902624029,0.53235269,110690.0,110680.0,0.01280822]
[1747902624431,0.88417082,110690.0,110680.0,0.01280822]
[1747902624674,0.9099764,110690.0,110680.0,0.01280822]
[1747902624893,0.92851725,110690.0,110680.0,0.01280822]
[1747902625105,1.01803876,110690.0,110680.0,0.01280822]
[1747902626002,0.53530202,110670.0,110660.0,0.00204]
[1747902626217,0.38237602,110670.0,110660.0,0.00204]
[1747902626433,1.34110673,110670.0,110660.0,0.00204]
[1747902626647,1.51215839,110670.0,110660.0,0.00204]
[1747902627088,0.29666975,110660.0,110650.0,0.04985]
[1747902627343,0.29666975,110660.0,110650.0,0.05000269]
[1747902627344,0.69296389,110660.0,110650.0,0.05000269]
[1747902627562,0.2043283,110650.0,110640.0,0.00204]
[1747902627781,0.34227386,110650.0,110640.0,0.0020907]
[1747902628016,0.65001048,110650.0,110630.0,6.434e-05]
[1747902628236,1.67440464,110640.0,110630.0,0.00015658]
[1747902628449,1.40982762,110640.0,110630.0,0.00015658]
[1747902628671,1.49934913,110640.0,110630.0,0.00015658]
[1747902628870,1.50934913,110640.0,110630.0,0.00015658]
[1747902629090,1.43478508,110640.0,110630.0,0.00015658]
[1747902629310,1.17251251,110640.0,110630.0,0.00015658]
[1747902629528,1.06875015,110640.0,110630.0,0.00015658]
[1747902629773,1.088291,110640.0,110630.0,0.00015658]
[1747902630029,1.095291,110640.0,110630.0,0.00015658]
[1747902630733,1.05145015,110640.0,110630.0,0.00015658]
[1747902632126,0.34865015,110640.0,110630.0,0.00015658]
[1747902632369,1.43571085,110640.0,110630.0,0.00015658]
[1747902632596,1.15889743,110640.0,110630.0,0.00015658]
[1747902632827,0.39961743,110640.0,110630.0,0.00015658]
[1747902633061,0.20180459,110640.0,110630.0,0.00015658]
[1747902633282,0.21084266,110640.0,110630.0,1.28708558]
[1747902633513,0.21084185,110640.0,110630.0,1.28708558]
[1747902633735,0.2108425,110640.0,110630.0,1.28708558]
[1747902633944,0.2038425,110640.0,110630.0,0.34015658]
[1747902634157,0.2038425,110640.0,110630.0,0.68065158]
[1747902634385,0.2048425,110640.0,110630.0,0.49003858]
[1747902635243,0.2048425,110640.0,110630.0,0.49429958]
[1747902635643,0.6988425,110640.0,110630.0,0.49429958]
[1747902635897,0.74979191,110640.0,110630.0,0.34015658]
[1747902636081,0.75479191,110640.0,110630.0,0.34115658]
[1747902636296,0.75279191,110640.0,110630.0,0.49479958]
[1747902636503,0.75279191,110640.0,110630.0,0.34215658]
[1747902636717,0.75479191,110640.0,110630.0,0.34215658]
[1747902637423,0.87233747,110640.0,110630.0,0.34215658]
[1747902637633,0.9748025,110640.0,110630.0,0.34215658]
[1747902642812,1.09424806,110640.0,110630.0,0.34215658]
[1747902644093,1.47223433,110640.0,110630.0,0.00215658]
[1747902644304,1.47223433,110640.0,110620.0,0.00370069]
[1747902644305,0.2637626,110630.0,110620.0,0.00370069]
[1747902644521,0.61558073,110630.0,110620.0,0.00370069]
[1747902644733,1.09534224,110630.0,110620.0,0.00370069]
[1747902646732,0.85206967,110630.0,110620.0,0.00370069]
[1747902647178,1.13034224,110630.0,110620.0,0.00370069]
[1747902647815,0.31436731,110630.0,110620.0,0.00370069]
[1747902648030,0.22482175,110630.0,110620.0,0.47996969]
[1747902648248,0.22482175,110630.0,110620.0,0.37200069]
[1747902648474,0.49586175,110630.0,110620.0,0.34370069]
[1747902648898,0.47686175,110630.0,110620.0,0.34370069]
[1747902649331,0.48986175,110630.0,110620.0,0.34370069]
[1747902649770,0.46086175,110630.0,110620.0,0.34370069]
[1747902650184,0.46786175,110630.0,110620.0,0.34370069]
[1747902650600,0.55738326,110630.0,110620.0,0.34370069]
[1747902651038,0.19682142,110630.0,110620.0,0.40370069]
[1747902651236,0.18778278,110630.0,110620.0,0.49324625]
[1747902651446,0.18778278,110630.0,110620.0,3.49870525]
[1747902651688,0.19682126,110630.0,110620.0,3.52411761]
[1747902651902,0.18778278,110630.0,110620.0,3.52411761]
[1747902652763,0.003,110630.0,110620.0,3.52411761]
[1747902652975,0.18378278,110630.0,110620.0,3.52411761]
[1747902653644,0.19282118,110630.0,110620.0,3.52511761]
[1747902653830,0.18078278,110630.0,110620.0,3.52411761]
[1747902653978,0.18278278,110630.0,110620.0,3.52511761]
[1747902654420,0.18378278,110630.0,110620.0,3.52611761]
[1747902654823,0.18378278,110630.0,110620.0,3.55323161]
[1747902655584,0.003,110630.0,110620.0,3.55323161]
[1747902655999,0.18378278,110630.0,110620.0,3.55323161]
[1747902656618,0.19282134,110630.0,110620.0,2.93472761]
[1747902657464,0.20185998,110630.0,110620.0,2.93472761]
[1747902657673,0.20186007,110630.0,110620.0,2.66368761]
[1747902657869,0.21089904,110630.0,110620.0,1.08100161]
[1747902658297,0.21135609,110630.0,110620.0,1.08100161]
[1747902658635,0.21135609,110630.0,110620.0,0.96216261]
[1747902658842,0.21135601,110630.0,110620.0,0.96216261]
[1747902659044,0.21135601,110630.0,110620.0,1.42012261]
[1747902659841,0.21135658,110630.0,110620.0,0.68038461]
[1747902660027,0.21135658,110630.0,110620.0,0.65327061]
[1747902660229,0.21135658,110630.0,110620.0,0.68227061]
[1747902660857,0.21135658,110630.0,110620.0,0.71290561]
[1747902661685,0.21135658,110630.0,110620.0,0.71327061]
[1747902661686,0.18423983,110630.0,110620.0,0.71327061]
[1747902662296,0.18423983,110630.0,110620.0,0.98431061]
[1747902662511,0.00345705,110630.0,110620.0,0.98431061]
[1747902662717,0.18423983,110630.0,110620.0,1.44227061]
[1747902662918,0.19327823,110630.0,110620.0,1.44227061]
[1747902663089,0.18423983,110630.0,110620.0,1.44227061]
[1747902663715,0.36279861,110630.0,110620.0,0.03111305]
[1747902663922,0.45234417,110630.0,110620.0,0.00570069]
[1747902664128,0.52508502,110630.0,110620.0,0.00570069]
[1747902664366,0.78735759,110630.0,110620.0,0.00570069]
[1747902664578,1.24531759,110630.0,110620.0,0.00570069]
[1747902665179,0.98204502,110630.0,110620.0,0.00470069]
[1747902665389,0.69175217,110630.0,110620.0,0.00370069]
[1747902665606,0.69575217,110630.0,110620.0,0.00370069]
[1747902665819,0.99062474,110630.0,110620.0,0.00370069]
[1747902666452,0.98762474,110630.0,110620.0,0.00370069]
[1747902666878,0.99262474,110630.0,110620.0,0.00370069]
[1747902667094,0.42971217,110630.0,110620.0,0.00370069]
[1747902667439,0.70075217,110630.0,110620.0,0.00370069]
[1747902667649,0.99242474,110630.0,110620.0,0.00370069]
[1747902667856,0.98842474,110630.0,110620.0,0.00370069]
[1747902668294,0.99242474,110630.0,110620.0,0.00370069]
[1747902668506,0.98742474,110630.0,110620.0,0.00370069]
[1747902668916,0.99342474,110630.0,110620.0,0.03433648]
[1747902670011,0.55329838,110630.0,110620.0,0.03433648]
[1747902670243,0.64281989,110630.0,110620.0,0.03433648]
[1747902670450,1.00808139,110630.0,110620.0,0.03433648]
[1747902670690,0.73704139,110630.0,110620.0,0.03433648]
[1747902670917,0.65628731,110630.0,110620.0,0.03433648]
[1747902671135,0.91855988,110630.0,110620.0,0.02710522]
[1747902671642,0.91855988,110630.0,110600.0,0.10451189]
[1747902671643,0.51866901,110610.0,110600.0,0.10451189]
[1747902671864,1.19518718,110610.0,110600.0,0.10451189]
[1747902672074,1.45745975,110610.0,110600.0,0.09728063]
[1747902672522,1.45745975,110610.0,110600.0,0.09004937]
[1747902672737,1.51249234,110610.0,110600.0,0.08281811]
[1747902672945,1.45745975,110610.0,110600.0,0.08281811]
[1747902673159,1.45745975,110610.0,110600.0,0.07558685]
[1747902673393,1.51249234,110610.0,110600.0,0.07558685]
[1747902673591,1.51249234,110610.0,110600.0,0.06835559]
[1747902673592,1.52961149,110610.0,110600.0,0.06835559]
[1747902673804,2.11599053,110610.0,110600.0,0.03671881]
[1747902674022,0.25524694,110600.0,110590.0,0.0420188]
[1747902674240,1.63737333,110600.0,110590.0,0.04211106]
[1747902674458,0.20444844,110580.0,110570.0,0.03157286]
[1747902674671,0.21446561,110570.0,110560.0,0.08208648]
[1747902674888,0.62131633,110570.0,110560.0,0.07485522]
[1747902675105,0.61468374,110570.0,110560.0,0.07485522]
[1747902675323,0.56513117,110570.0,110560.0,0.06762396]
[1747902675546,0.55059032,110570.0,110560.0,0.06762396]
[1747902675790,0.18994211,110560.0,110550.0,0.05124949]
[1747902676013,0.18994211,110560.0,110550.0,0.41914949]
[1747902676014,0.19898672,110560.0,110550.0,0.41914949]
[1747902676225,0.19898672,110560.0,110550.0,0.44628649]
[1747902676441,0.28853228,110560.0,110550.0,0.41838649]
[1747902676659,0.61881752,110560.0,110550.0,0.05124949]
[1747902676872,0.19904072,110530.0,110520.0,0.11634937]
[1747902677106,0.19904072,110530.0,110520.0,0.14349337]
[1747902677286,0.19904072,110530.0,110520.0,0.14400345]
[1747902677543,0.19904072,110530.0,110520.0,0.48400345]
[1747902677765,0.19904072,110530.0,110520.0,0.11685945]
[1747902678419,0.19904072,110530.0,110520.0,0.08895945]
[1747902678633,0.61597335,110530.0,110520.0,0.08895945]
[1747902678838,0.35370078,110530.0,110520.0,0.08895945]
[1747902679283,0.6315142,110530.0,110520.0,0.08895945]
[1747902679490,0.36824163,110530.0,110520.0,0.08895945]
[1747902679674,0.6305142,110530.0,110520.0,0.08895945]
[1747902679904,1.0931142,110530.0,110520.0,0.08895945]
[1747902680119,1.1303142,110530.0,110520.0,0.08895945]
[1747902680330,1.149853,110530.0,110520.0,0.08895945]
[1747902680534,0.41643958,110530.0,110520.0,0.08895945]
[1747902680760,1.421093,110530.0,110520.0,0.08895945]
[1747902680995,0.59232508,110530.0,110520.0,0.08895945]
[1747902681658,0.32112508,110530.0,110520.0,0.08895945]
[1747902681868,0.59232508,110530.0,110520.0,0.08895945]
[1747902682511,0.59232508,110530.0,110520.0,0.00051008]
[1747902682720,0.66024583,110530.0,110520.0,0.00051008]
[1747902683400,0.67109912,110530.0,110520.0,0.00051008]
[1747902685183,1.12789912,110530.0,110520.0,0.00051008]
[1747902687695,0.41437018,110530.0,110520.0,0.00051008]
[1747902687865,1.14245018,110530.0,110520.0,0.00051008]
[1747902688909,1.13159689,110530.0,110520.0,0.00051008]
[1747902689464,0.40351689,110530.0,110520.0,0.00051008]
[1747902689747,1.13167689,110530.0,110520.0,0.00051008]
[1747902690295,0.40351689,110530.0,110520.0,0.00051008]
[1747902690518,1.13167689,110530.0,110520.0,0.00051008]
[1747902690715,0.40351689,110530.0,110520.0,0.00051008]
[1747902690918,0.59606285,110530.0,110520.0,0.02901008]
[1747902691784,0.59244454,110530.0,110520.0,0.02901008]
[1747902692392,0.59244454,110530.0,110520.0,0.02905008]
[1747902692624,0.59244454,110530.0,110520.0,0.00055008]
[1747902692827,0.67123053,110530.0,110520.0,0.00055008]
[1747902693273,0.22253142,110530.0,110520.0,0.85413408]
[1747902693482,0.24062507,110530.0,110520.0,1.45145464]
[1747902693672,0.24062572,110530.0,110520.0,1.38985964]
[1747902693850,0.22108746,110530.0,110520.0,0.48539564]
[1747902694072,0.22108746,110530.0,110520.0,0.68538864]
[1747902694285,0.21408746,110530.0,110520.0,0.68538864]
[1747902694500,0.21808746,110530.0,110520.0,0.68538864]
[1747902694702,0.19399357,110530.0,110520.0,0.39585008]
[1747902694910,0.19399357,110530.0,110520.0,0.58553808]
[1747902695118,0.19699357,110530.0,110520.0,0.58553808]
[1747902695578,0.19399357,110530.0,110520.0,0.58553808]
[1747902695778,0.19399357,110530.0,110520.0,0.39585008]
[1747902695982,0.19599357,110530.0,110520.0,0.39585008]
[1747902696409,0.19199357,110530.0,110520.0,0.39585008]
[1747902696815,0.19499357,110530.0,110520.0,0.39585008]
[1747902697016,0.19499357,110530.0,110520.0,0.36825008]
[1747902697215,0.32299915,110530.0,110520.0,0.34055008]
[1747902697955,0.32299915,110530.0,110520.0,0.09864749]
[1747902698191,0.19907642,110510.0,110500.0,0.05913]
[1747902698401,0.19907642,110510.0,110500.0,0.05928274]
[1747902699249,0.19907642,110510.0,110500.0,0.44402101]
[1747902699460,0.19907642,110510.0,110500.0,0.05928274]
[1747902699673,0.20007642,110510.0,110500.0,0.05928274]
[1747902700090,0.20007642,110510.0,110500.0,0.93814174]
[1747902700301,0.20007642,110510.0,110500.0,0.39928274]
[1747902700919,0.20107642,110510.0,110500.0,0.39928274]
[1747902701536,0.24102024,110510.0,110500.0,0.39928274]
[1747902701744,0.20107642,110510.0,110500.0,0.39928274]
[1747902703218,0.20107642,110510.0,110500.0,0.37198274]
[1747902703862,0.20107642,110510.0,110500.0,0.40168274]
[1747902704267,0.20107642,110510.0,110500.0,0.06168274]
[1747902704448,0.26727979,110510.0,110500.0,0.00318274]
[1747902704706,0.20107642,110510.0,110500.0,0.05948274]
[1747902704918,0.19202788,110510.0,110500.0,0.05948274]
[1747902705122,0.21012537,110510.0,110500.0,0.96892274]
[1747902705331,0.20812537,110510.0,110500.0,0.79005574]
[1747902705533,0.20812537,110510.0,110500.0,0.77405574]
[1747902705687,0.20912462,110510.0,110500.0,0.8636013]
[1747902705890,0.18197909,110510.0,110500.0,0.8636013]
[1747902706325,0.19102738,110510.0,110500.0,0.8636013]
[1747902706521,0.18197909,110510.0,110500.0,0.8636013]
[1747902706893,0.18297909,110510.0,110500.0,0.8636013]
[1747902707521,0.002,110510.0,110500.0,0.8636013]
[1747902707738,0.18297909,110510.0,110500.0,0.8636013]
[1747902708149,0.18297909,110510.0,110500.0,0.88897506]
[1747902708367,0.18297909,110510.0,110500.0,0.8636013]
[1747902708746,0.18297909,110510.0,110500.0,0.88897174]
[1747902708948,0.18297909,110510.0,110500.0,0.8636013]
[1747902709369,0.002,110510.0,110500.0,0.88896802]
[1747902710398,0.18094634,110530.0,110520.0,0.0586]
[1747902710595,0.18094634,110530.0,110520.0,3.49586628]
[1747902710796,0.18094634,110530.0,110520.0,3.49360456]
[1747902711010,0.18094426,110540.0,110530.0,0.34]
[1747902711249,0.78222201,110550.0,110540.0,0.0585]
[1747902711469,0.78222201,110550.0,110540.0,3.15350456]
[1747902711693,0.79126744,110550.0,110540.0,3.04356956]
[1747902711923,0.69195855,110550.0,110540.0,3.38356956]
[1747902712130,0.68291361,110550.0,110540.0,2.92607156]
[1747902712340,0.70100373,110550.0,110540.0,2.92607156]
[1747902712564,0.70400373,110550.0,110540.0,2.9262243]
[1747902712782,0.713049,110550.0,110540.0,2.4137233]
[1747902712994,0.72209443,110550.0,110540.0,2.4137233]
[1747902713236,0.713049,110550.0,110540.0,2.4137233]
[1747902713453,0.69495855,110550.0,110540.0,2.4137233]
[1747902713669,0.71304908,110550.0,110540.0,2.4137233]
[1747902713921,0.70400373,110550.0,110540.0,2.4137233]
[1747902714135,0.71704916,110550.0,110540.0,2.2890943]
[1747902714361,0.72609475,110550.0,110540.0,2.1667253]
[1747902714574,0.70100488,110550.0,110540.0,0.36985274]
[1747902714792,0.70300488,110550.0,110540.0,0.37085274]
[1747902715008,0.70600488,110550.0,110540.0,0.37185274]
[1747902715257,0.70600488,110550.0,110540.0,0.34215274]
[1747902715471,0.76471439,110550.0,110540.0,0.34215274]
[1747902716108,0.70600488,110550.0,110540.0,0.34215274]
[1747902716339,0.97728488,110550.0,110540.0,0.34215274]
[1747902717005,1.45845429,110550.0,110540.0,0.00215274]
[1747902717453,1.12453044,110550.0,110540.0,0.00215274]
[1747902717655,1.21405195,110550.0,110540.0,0.00215274]
[1747902717881,1.66997195,110550.0,110540.0,0.00215274]
[1747902718091,1.63687195,110550.0,110540.0,0.00015274]
[1747902718487,1.64987195,110550.0,110540.0,0.00015274]
[1747902719136,1.65851268,110550.0,110540.0,0.00015274]
[1747902719347,0.84179117,110550.0,110540.0,0.00015274]
[1747902719575,1.08347117,110550.0,110540.0,0.00015274]
[1747902720478,1.07483044,110550.0,110540.0,0.00015274]
[1747902721386,0.71400488,110550.0,110540.0,0.00015274]
[1747902721609,0.98528488,110550.0,110540.0,0.00015274]
[1747902721850,0.80352639,110550.0,110540.0,0.02885274]
[1747902722291,0.80352639,110550.0,110540.0,0.00015274]
[1747902724237,0.89307195,110550.0,110540.0,0.00015274]
[1747902724447,0.80352639,110550.0,110540.0,0.00015274]
[1747902724673,0.71400488,110550.0,110540.0,0.00015274]
[1747902724887,0.71400488,110550.0,110540.0,0.03025274]
[1747902725312,0.71400488,110550.0,110540.0,0.00015274]
[1747902725893,0.71400488,110550.0,110540.0,0.00019274]
[1747902726109,0.80352639,110550.0,110540.0,0.00019274]
[1747902726577,0.71400488,110550.0,110540.0,0.00019274]
[1747902728226,0.71400488,110550.0,110540.0,0.02839274]
[1747902729076,0.71400488,110550.0,110540.0,0.05789274]
[1747902729290,0.71400488,110550.0,110540.0,0.75086174]
[1747902730058,0.71400406,110550.0,110540.0,0.75086174]
[1747902730264,0.70495855,110550.0,110540.0,0.8404073]
[1747902730472,0.72509443,110550.0,110540.0,0.8404073]
[1747902730691,0.73414011,110550.0,110540.0,0.8404073]
[1747902730893,0.72509517,110550.0,110540.0,0.8404073]
[1747902731276,0.73009517,110550.0,110540.0,0.8404073]
[1747902731486,0.72105007,110550.0,110540.0,0.8404073]
[1747902731701,0.71605007,110550.0,110540.0,0.7690083]
[1747902731905,0.71005007,110550.0,110540.0,0.7690083]
[1747902732329,0.7030048,110550.0,110540.0,0.39789274]
[1747902732551,0.7030048,110550.0,110540.0,0.34019274]
[1747902732765,0.9742848,110550.0,110540.0,0.34019274]
[1747902733002,0.9742848,110550.0,110540.0,0.36959274]
[1747902733208,0.9792848,110550.0,110540.0,0.39899274]
[1747902733619,0.9792848,110550.0,110540.0,0.36959274]
[1747902733819,0.9742848,110550.0,110540.0,0.34019274]
[1747902734032,0.9762848,110550.0,110540.0,0.34119274]
[1747902735313,1.45947722,110550.0,110540.0,0.00119274]
[1747902735517,1.54899873,110550.0,110540.0,0.00119274]
[1747902735948,0.93145115,110550.0,110540.0,0.00119274]
[1747902736157,1.20273115,110550.0,110540.0,0.00119274]
[1747902736361,1.20073115,110550.0,110540.0,0.00019274]
[1747902736564,1.46470516,110550.0,110540.0,0.00019274]
[1747902736775,1.49510516,110550.0,110540.0,0.00019274]
[1747902737393,1.49310516,110550.0,110540.0,0.00019274]
[1747902737843,1.49710516,110550.0,110540.0,0.00019274]
[1747902738523,1.51164601,110550.0,110540.0,0.00019274]
[1747902739624,1.247672,110550.0,110540.0,0.00019274]
[1747902739868,1.51164601,110550.0,110540.0,0.00019274]
[1747902740702,1.51525431,110550.0,110540.0,0.00019274]
[1747902742056,1.50071346,110550.0,110540.0,0.00019274]
[1747902742274,1.63687945,110550.0,110540.0,0.00019274]
[1747902743189,0.82063794,110550.0,110540.0,0.00019274]
[1747902743458,1.09195794,110550.0,110540.0,0.00019274]
[1747902743929,1.07752476,110550.0,110540.0,0.00019274]
[1747902744362,1.07752476,110550.0,110540.0,0.02939274]
[1747902746447,1.07752476,110550.0,110540.0,0.00019274]
[1747902746668,1.16704627,110550.0,110540.0,0.00019274]
[1747902746890,1.43102028,110550.0,110540.0,0.00019274]
[1747902747331,1.16704627,110550.0,110540.0,0.00019274]
[1747902750994,0.7166592,110550.0,110540.0,0.05869274]
[1747902752322,0.7080048,110550.0,110540.0,0.05869274]
[1747902752914,0.69895912,110550.0,110540.0,0.05869274]
[1747902753115,0.7170499,110550.0,110540.0,0.1482383]
[1747902753358,0.70800422,110550.0,110540.0,0.5151553]
[1747902753570,0.71704981,110550.0,110540.0,0.5151553]
[1747902754025,0.71404981,110550.0,110540.0,0.1482383]
[1747902754238,0.71004981,110550.0,110540.0,0.4938913]
[1747902754445,0.71304981,110550.0,110540.0,0.8393663]
[1747902754890,0.71204884,110550.0,110540.0,0.8393663]
[1747902755095,0.71909435,110550.0,110540.0,0.8393663]
[1747902755267,0.72814003,110550.0,110540.0,0.5944973]
[1747902755472,0.73014003,110550.0,110540.0,0.5944973]
[1747902755853,0.71204875,110550.0,110540.0,0.5944973]
[1747902756101,0.72109492,110550.0,110540.0,0.5944973]
[1747902756344,0.72209492,110550.0,110540.0,0.3452343]
[1747902756519,0.7130499,110550.0,110540.0,0.3452343]
[1747902756754,0.7130499,110550.0,110540.0,0.2945173]
[1747902757810,0.71304981,110550.0,110540.0,0.2945173]
[1747902758280,0.70400373,110550.0,110540.0,0.2945173]
[1747902758494,0.70400373,110550.0,110540.0,0.6345173]
[1747902758719,0.505,110550.0,110540.0,0.6345173]
[1747902758946,0.505,110550.0,110540.0,0.9057973]
[1747902759380,0.505,110550.0,110540.0,0.9157973]
[1747902759579,0.4767,110550.0,110540.0,0.94111229]
[1747902759791,0.4767,110550.0,110540.0,0.9157973]
[1747902760214,0.4757,110550.0,110540.0,0.9157973]
[1747902760355,0.4182,110550.0,110540.0,0.9167973]
[1747902760561,0.36478431,110550.0,110540.0,0.9167973]
[1747902760781,0.36378431,110550.0,110540.0,0.9167973]
[1747902761013,0.36478431,110550.0,110540.0,0.9167973]
[1747902761229,0.36278431,110550.0,110540.0,0.9167973]
[1747902761420,0.36178431,110550.0,110540.0,0.9167973]
[1747902761621,0.36278431,110550.0,110540.0,0.9167973]
[1747902763976,0.32490892,110550.0,110540.0,1.3906043]
[1747902764203,0.32490892,110550.0,110540.0,0.6646443]
[1747902764423,0.52391298,110550.0,110540.0,1.3634373]
[1747902764643,0.52391298,110550.0,110540.0,0.7521973]
[1747902764644,0.53295849,110550.0,110540.0,0.7521973]
[1747902764858,0.53295849,110550.0,110540.0,0.9297703]
[1747902765068,0.53295849,110550.0,110540.0,1.2697703]
[1747902765274,0.53295849,110550.0,110540.0,0.9297703]
[1747902765534,0.53295849,110550.0,110540.0,0.2038503]
[1747902765755,0.52391339,110550.0,110540.0,0.0927383]
[1747902766037,0.52291339,110550.0,110540.0,0.4307383]
[1747902766296,0.52291339,110550.0,110540.0,0.00219274]
[1747902766297,0.52391339,110550.0,110540.0,0.00219274]
[1747902766718,0.52291339,110550.0,110540.0,0.00219274]
[1747902767158,0.52391339,110550.0,110540.0,0.00219274]
[1747902770262,0.42391339,110550.0,110540.0,0.00219274]
[1747902770498,0.55080315,110550.0,110540.0,0.00219274]
[1747902770730,0.5642543,110550.0,110540.0,0.00219274]
[1747902771203,0.65379986,110550.0,110540.0,0.00219274]
[1747902771429,0.91777387,110550.0,110540.0,0.00219274]
[1747902771866,0.49506454,110550.0,110540.0,0.00119274]
[1747902772094,0.42191339,110550.0,110540.0,0.00119274]
[1747902772421,0.42191372,110550.0,110540.0,0.33715274]
[1747902772536,0.42591372,110550.0,110540.0,0.33715274]
[1747902772748,0.32591372,110550.0,110540.0,0.33715274]
[1747902773221,0.32591372,110550.0,110540.0,0.21247074]
[1747902773429,0.3168678,110550.0,110540.0,0.12401074]
[1747902773655,0.33795874,110550.0,110540.0,0.10274174]
[1747902773863,0.32591347,110550.0,110540.0,0.00119274]
[1747902776840,0.32291347,110550.0,110540.0,0.00119274]
[1747902777041,0.37941347,110550.0,110540.0,0.00119274]
[1747902777434,0.4330097,110550.0,110540.0,0.00119274]
[1747902777645,0.37941347,110550.0,110540.0,0.00119274]
[1747902778529,0.38141347,110550.0,110540.0,0.00119274]
[1747902778972,0.38041347,110550.0,110540.0,0.00119274]
[1747902779127,0.37841347,110550.0,110540.0,0.00119274]
[1747902779501,0.38241347,110550.0,110540.0,0.00119274]
[1747902780781,0.38541347,110550.0,110540.0,0.00119274]
[1747902780986,0.32891347,110550.0,110540.0,0.00119274]
[1747902781446,0.33795866,110550.0,110540.0,0.75667174]
[1747902781676,0.32891364,110550.0,110540.0,0.00119274]
[1747902781903,0.31986821,110550.0,110540.0,0.00119274]
[1747902782148,0.37080896,110550.0,110540.0,0.00119274]
[1747902782368,0.31986821,110550.0,110540.0,0.00119274]
[1747902782827,0.34856821,110550.0,110540.0,0.00119274]
[1747902783739,0.37676821,110550.0,110540.0,0.00119274]
[1747902785373,0.39043645,110550.0,110540.0,0.00119274]
[1747902786059,0.33353645,110550.0,110540.0,0.00119274]
[1747902786728,0.31986821,110550.0,110540.0,0.88582274]
[1747902786942,0.31986821,110550.0,110540.0,0.49948274]
[1747902787169,0.31986821,110550.0,110540.0,0.34119274]
[1747902788354,0.31986821,110550.0,110540.0,0.37159274]
[1747902788592,0.31986821,110550.0,110540.0,0.34119274]
[1747902789227,0.31986821,110550.0,110540.0,1.08271674]
[1747902789442,0.31986796,110550.0,110540.0,1.14121674]
[1747902789689,0.31082253,110550.0,110540.0,1.2307623]
[1747902789906,0.32891273,110550.0,110540.0,1.2307623]
[1747902790107,0.337958,110550.0,110540.0,1.2307623]
[1747902790336,0.32891282,110550.0,110540.0,1.2307623]
[1747902790565,0.12990892,110550.0,110540.0,1.2307623]
[1747902790784,0.12990892,110550.0,110540.0,1.5020423]
[1747902790998,0.31082253,110550.0,110540.0,1.5020423]
[1747902791434,0.31686755,110550.0,110540.0,1.5291763]
[1747902791681,0.31286747,110550.0,110540.0,1.5291763]
[1747902791889,0.30482253,110550.0,110540.0,1.5291763]
[1747902792095,0.31486747,110550.0,110540.0,1.5291763]
[1747902792523,0.31386747,110550.0,110540.0,1.5291763]
[1747902792930,0.30582253,110550.0,110540.0,1.5291763]
[1747902794884,0.12490892,110550.0,110540.0,1.5291763]
[1747902796263,0.12490892,110550.0,110540.0,1.5391763]
[1747902796617,0.11710003,110550.0,110540.0,1.5391763]
[1747902796797,0.11710003,110550.0,110540.0,1.56449572]
[1747902797556,0.11610003,110550.0,110540.0,1.56449572]
[1747902798006,0.11610003,110550.0,110540.0,1.56649572]
[1747902798202,0.11610003,110550.0,110540.0,1.56449572]
[1747902798203,0.11510003,110550.0,110540.0,1.56449572]
[1747902798409,0.10820003,110550.0,110540.0,1.92733572]
[1747902798611,0.10920003,110550.0,110540.0,1.92933572]
[1747902799125,0.10920003,110550.0,110540.0,1.92833572]
[1747902799126,0.10820003,110550.0,110540.0,1.92833572]
[1747902799360,0.10920003,110550.0,110540.0,1.93033572]
[1747902799684,0.04536003,110550.0,110540.0,1.9050163]
[1747902801214,0.01911046,110550.0,110540.0,1.9050163]
[1747902802587,0.18288204,110570.0,110560.0,0.059]
[1747902802588,0.19192534,110570.0,110560.0,0.059]
[1747902802799,0.19192534,110570.0,110560.0,3.94804456]
[1747902802923,0.18288204,110570.0,110560.0,3.94804456]
[1747902803167,0.002,110570.0,110560.0,3.94804456]
[1747902803937,0.002,110570.0,110560.0,4.24637256]
[1747902804293,0.002,110570.0,110560.0,4.60816256]
[1747902805225,0.002,110570.0,110560.0,4.60916256]
[1747902805426,0.003,110570.0,110560.0,4.60916256]
[1747902805683,0.004,110570.0,110560.0,4.61016256]
[1747902806103,0.004,110570.0,110560.0,4.33896256]
[1747902806316,0.004,110570.0,110560.0,4.61016256]
[1747902807571,0.004,110570.0,110560.0,4.41137456]
[1747902809092,0.004,110570.0,110560.0,5.09577456]
[1747902810279,0.004,110570.0,110560.0,5.09573456]
[1747902810439,0.004,110570.0,110560.0,5.15493456]
[1747902810686,0.004,110570.0,110560.0,4.81493456]
[1747902812330,0.004,110570.0,110560.0,4.82853879]
[1747902812718,0.004,110570.0,110560.0,5.16853879]
[1747902812944,0.0037,110570.0,110560.0,5.16853879]
[1747902814140,0.002,110590.0,110570.0,0.3984]
[1747902814322,0.002,110590.0,110580.0,3.56863683]
[1747902814556,0.18284817,110590.0,110580.0,2.61087856]
[1747902814827,0.18284817,110590.0,110580.0,2.52045556]